[Event "*** SCC Grand Prix: Titled Tuesday Blitz"]
[Site "Chess.com"]
[Date "2020.06.09"]
[Round "5"]
[White "Bulldog167"]
[Black "Tesla37"]
[Result "1-0"]
[WhiteElo "2790"]
[BlackElo "2912"]
[TimeControl "180+1"]
[EndTime "9:57:43 PDT"]
[Termination "Bulldog167 won by checkmate"]

1. d4 {[%clk 0:02:51.1]} 1... Nf6 {[%clk 0:02:59]} 2. c4 {[%clk 0:02:50.2]} 2...
d6 {[%clk 0:02:59.2]} 3. Nc3 {[%clk 0:02:47.8]} 3... Nbd7 {[%clk 0:02:58.9]} 4.
Nf3 {[%clk 0:02:48.5]} 4... e5 {[%clk 0:02:58.3]} 5. Bg5 {[%clk 0:02:49.2]} 5...
h6 {[%clk 0:02:56]} 6. Bh4 {[%clk 0:02:49.1]} 6... c6 {[%clk 0:02:47.9]} 7. e3
{[%clk 0:02:49.1]} 7... Be7 {[%clk 0:02:44.8]} 8. Qc2 {[%clk 0:02:49]} 8... Qc7
{[%clk 0:02:40.3]} 9. Be2 {[%clk 0:02:48.8]} 9... b6 {[%clk 0:02:39.1]} 10. O-O
{[%clk 0:02:44]} 10... Bb7 {[%clk 0:02:37.4]} 11. Rfd1 {[%clk 0:02:44]} 11...
O-O {[%clk 0:02:36.3]} 12. b4 {[%clk 0:02:40.7]} 12... Rfe8 {[%clk 0:02:34.4]}
13. a4 {[%clk 0:02:38.3]} 13... a5 {[%clk 0:02:24.7]} 14. b5 {[%clk 0:02:38.5]}
14... c5 {[%clk 0:02:24.7]} 15. dxe5 {[%clk 0:02:33.9]} 15... dxe5 {[%clk
0:02:20.5]} 16. Nd2 {[%clk 0:02:29]} 16... Rad8 {[%clk 0:02:06]} 17. Bf3 {[%clk
0:02:12.6]} 17... Bxf3 {[%clk 0:01:34.5]} 18. Nxf3 {[%clk 0:02:12.6]} 18... Qb7
{[%clk 0:01:35.1]} 19. Bxf6 {[%clk 0:01:48.1]} 19... Bxf6 {[%clk 0:01:31.4]} 20.
Qe4 {[%clk 0:01:46.7]} 20... Qb8 {[%clk 0:01:22.4]} 21. Nd5 {[%clk 0:01:44.1]}
21... g6 {[%clk 0:01:19.2]} 22. Rd2 {[%clk 0:01:38]} 22... Bg7 {[%clk 0:01:18]}
23. g4 {[%clk 0:01:37.1]} 23... f5 {[%clk 0:01:08.9]} 24. gxf5 {[%clk
0:01:36.6]} 24... gxf5 {[%clk 0:01:09.3]} 25. Qxf5 {[%clk 0:01:36.4]} 25... e4
{[%clk 0:01:09.8]} 26. Rad1 {[%clk 0:01:24.1]} 26... exf3 {[%clk 0:01:08.8]} 27.
Nf4 {[%clk 0:01:13.8]} 27... Nf8 {[%clk 0:01:05.3]} 28. Qg4 {[%clk 0:01:06.6]}
28... Rxd2 {[%clk 0:01:02.1]} 29. Rxd2 {[%clk 0:01:07.5]} 29... Qe5 {[%clk
0:00:53.5]} 30. Qxf3 {[%clk 0:01:02.3]} 30... Ne6 {[%clk 0:00:43.1]} 31. Qd5
{[%clk 0:00:34.5]} 31... Qf6 {[%clk 0:00:19.8]} 32. Qc6 {[%clk 0:00:26.5]} 32...
Re7 {[%clk 0:00:16.5]} 33. Rd6 {[%clk 0:00:21.7]} 33... Qa1+ {[%clk 0:00:15.5]}
34. Kg2 {[%clk 0:00:20.1]} 34... Nxf4+ {[%clk 0:00:15.6]} 35. exf4 {[%clk
0:00:21]} 35... Qe1 {[%clk 0:00:14.6]} 36. Rd8+ {[%clk 0:00:20.8]} 36... Kh7
{[%clk 0:00:14.5]} 37. Rb8 {[%clk 0:00:09.2]} 37... Bd4 {[%clk 0:00:11.2]} 38.
Qf3 {[%clk 0:00:01.2]} 38... Rg7+ {[%clk 0:00:10.9]} 39. Kh3 {[%clk 0:00:01.4]}
39... Qf1+ {[%clk 0:00:11.3]} 40. Kh4 {[%clk 0:00:02.1]} 40... Qxc4 {[%clk
0:00:09.3]} 41. Qe4+ {[%clk 0:00:02.3]} 41... Rg6 {[%clk 0:00:09]} 42. Rb7+
{[%clk 0:00:02.7]} 42... Kh8 {[%clk 0:00:08.2]} 43. Rb8+ {[%clk 0:00:02.8]}
43... Kh7 {[%clk 0:00:07.1]} 44. Rb7+ {[%clk 0:00:03]} 44... Kh8 {[%clk
0:00:07.4]} 45. Rb8+ {[%clk 0:00:01.4]} 45... Rg8 {[%clk 0:00:07.2]} 46. Rxg8+
{[%clk 0:00:01.5]} 46... Qxg8 {[%clk 0:00:06.2]} 47. Qc6 {[%clk 0:00:02.3]}
47... Qd8+ {[%clk 0:00:05.6]} 48. Kh5 {[%clk 0:00:01.5]} 48... Bg7 {[%clk
0:00:06.2]} 49. f5 {[%clk 0:00:01.5]} 49... Qf6 {[%clk 0:00:05.2]} 50. Kg4
{[%clk 0:00:01.8]} 50... Qxc6 {[%clk 0:00:02.8]} 51. bxc6 {[%clk 0:00:02.6]}
51... Be5 {[%clk 0:00:03.2]} 52. f6 {[%clk 0:00:03.5]} 52... Bc7 {[%clk
0:00:03.6]} 53. Kf5 {[%clk 0:00:04.4]} 53... Kg8 {[%clk 0:00:03.7]} 54. Ke6
{[%clk 0:00:04.9]} 54... c4 {[%clk 0:00:03.3]} 55. Ke7 {[%clk 0:00:05.7]} 55...
c3 {[%clk 0:00:02.8]} 56. f7+ {[%clk 0:00:06.3]} 56... Kh7 {[%clk 0:00:03.3]}
57. f8=Q {[%clk 0:00:07]} 57... c2 {[%clk 0:00:04.1]} 58. Kf7 {[%clk 0:00:06.6]}
58... c1=Q {[%clk 0:00:01.7]} 59. Qg8# {[%clk 0:00:07.1]} 1-0

[Event "*** SCC Grand Prix: Titled Tuesday Blitz"]
[Site "Chess.com"]
[Date "2020.06.09"]
[Round "5"]
[White "OdChessWorld"]
[Black "Vuk2000"]
[Result "0-1"]
[WhiteElo "2766"]
[BlackElo "2628"]
[TimeControl "180+1"]
[EndTime "9:57:48 PDT"]
[Termination "Vuk2000 won by checkmate"]

1. c4 {[%clk 0:03:00.3]} 1... e5 {[%clk 0:03:00]} 2. Nc3 {[%clk 0:02:58.9]} 2...
Nc6 {[%clk 0:03:00.4]} 3. Nf3 {[%clk 0:02:59]} 3... g6 {[%clk 0:03:00.3]} 4. g3
{[%clk 0:02:59.1]} 4... Bg7 {[%clk 0:03:00.2]} 5. Bg2 {[%clk 0:02:59.2]} 5... d6
{[%clk 0:03:00.2]} 6. O-O {[%clk 0:02:59.3]} 6... Be6 {[%clk 0:03:00.3]} 7. d3
{[%clk 0:02:57.2]} 7... h6 {[%clk 0:03:00.6]} 8. Rb1 {[%clk 0:02:56.1]} 8... Qd7
{[%clk 0:03:00.9]} 9. b4 {[%clk 0:02:56.2]} 9... Bh3 {[%clk 0:03:00.7]} 10. b5
{[%clk 0:02:56.3]} 10... Nd8 {[%clk 0:03:00.4]} 11. a4 {[%clk 0:02:31.2]} 11...
Bxg2 {[%clk 0:02:53]} 12. Kxg2 {[%clk 0:02:32.1]} 12... Ne7 {[%clk 0:02:50.2]}
13. a5 {[%clk 0:02:30.8]} 13... a6 {[%clk 0:02:50.1]} 14. b6 {[%clk 0:02:27.4]}
14... c6 {[%clk 0:02:44.1]} 15. Bb2 {[%clk 0:02:25.8]} 15... O-O {[%clk
0:02:41.2]} 16. d4 {[%clk 0:02:23.6]} 16... exd4 {[%clk 0:02:39.4]} 17. Nxd4
{[%clk 0:02:24.5]} 17... Ne6 {[%clk 0:02:39.7]} 18. Ne4 {[%clk 0:02:06.7]} 18...
Rad8 {[%clk 0:02:06.5]} 19. Nxe6 {[%clk 0:01:59.7]} 19... Qxe6 {[%clk
0:02:07.4]} 20. Bxg7 {[%clk 0:02:00.1]} 20... Qxe4+ {[%clk 0:01:46.1]} 21. f3
{[%clk 0:01:58.4]} 21... Qxc4 {[%clk 0:01:45.9]} 22. Bxf8 {[%clk 0:01:58.5]}
22... Kxf8 {[%clk 0:01:46.3]} 23. Qc1 {[%clk 0:01:38.8]} 23... Qxc1 {[%clk
0:01:13.9]} 24. Rbxc1 {[%clk 0:01:39.7]} 24... c5 {[%clk 0:01:12.6]} 25. Rfd1
{[%clk 0:01:29.4]} 25... Nc6 {[%clk 0:01:12.7]} 26. Kf2 {[%clk 0:01:25.4]} 26...
Ke7 {[%clk 0:01:10.2]} 27. Ra1 {[%clk 0:01:20.3]} 27... d5 {[%clk 0:01:07]} 28.
e3 {[%clk 0:01:15.9]} 28... Kd6 {[%clk 0:01:02]} 29. Ra4 {[%clk 0:01:10.4]}
29... Rd7 {[%clk 0:00:35]} 30. h4 {[%clk 0:00:59.4]} 30... Ke6 {[%clk
0:00:27.1]} 31. g4 {[%clk 0:00:51]} 31... Ne5 {[%clk 0:00:26.8]} 32. Ke2 {[%clk
0:00:45.1]} 32... f6 {[%clk 0:00:23.4]} 33. Rg1 {[%clk 0:00:40.1]} 33... d4
{[%clk 0:00:20.9]} 34. exd4 {[%clk 0:00:31]} 34... cxd4 {[%clk 0:00:21.8]} 35.
f4 {[%clk 0:00:31.6]} 35... Nc6 {[%clk 0:00:22]} 36. Kf3 {[%clk 0:00:19.1]}
36... Rd5 {[%clk 0:00:21.3]} 37. Raa1 {[%clk 0:00:16.1]} 37... Nxa5 {[%clk
0:00:20.4]} 38. Rae1+ {[%clk 0:00:15.8]} 38... Kd6 {[%clk 0:00:18.9]} 39. h5
{[%clk 0:00:14.9]} 39... gxh5 {[%clk 0:00:17.2]} 40. gxh5 {[%clk 0:00:14.9]}
40... Rxh5 {[%clk 0:00:17.7]} 41. Rg6 {[%clk 0:00:15.1]} 41... Nc6 {[%clk
0:00:16.7]} 42. Rxf6+ {[%clk 0:00:14.7]} 42... Kc5 {[%clk 0:00:17.3]} 43. Re7
{[%clk 0:00:13.3]} 43... Nxe7 {[%clk 0:00:15.9]} 44. Rf7 {[%clk 0:00:13.7]}
44... Nc6 {[%clk 0:00:15.3]} 45. Rxb7 {[%clk 0:00:13.6]} 45... Rd5 {[%clk
0:00:13.8]} 46. Ke2 {[%clk 0:00:10]} 46... Rf5 {[%clk 0:00:13.1]} 47. Rh7 {[%clk
0:00:07.5]} 47... Kxb6 {[%clk 0:00:11.3]} 48. Rxh6 {[%clk 0:00:07.4]} 48... Rxf4
{[%clk 0:00:11.7]} 49. Kd3 {[%clk 0:00:08.3]} 49... Rf3+ {[%clk 0:00:12]} 50.
Kc4 {[%clk 0:00:08.6]} 50... Rc3+ {[%clk 0:00:12.4]} 51. Kd5 {[%clk 0:00:09.2]}
51... Rc5+ {[%clk 0:00:13]} 52. Ke4 {[%clk 0:00:08.9]} 52... a5 {[%clk
0:00:13.3]} 53. Kd3 {[%clk 0:00:09.2]} 53... Rc3+ {[%clk 0:00:13]} 54. Kd2
{[%clk 0:00:09.7]} 54... Kb5 {[%clk 0:00:13.5]} 55. Rh1 {[%clk 0:00:10.1]} 55...
Nb4 {[%clk 0:00:13.1]} 56. Rb1 {[%clk 0:00:10.5]} 56... Rc2+ {[%clk 0:00:13]}
57. Kd1 {[%clk 0:00:10.4]} 57... Kc4 {[%clk 0:00:12.8]} 58. Rxb4+ {[%clk
0:00:10.4]} 58... axb4 {[%clk 0:00:13]} 59. Kxc2 {[%clk 0:00:11.3]} 59... b3+
{[%clk 0:00:13.4]} 60. Kb2 {[%clk 0:00:11.6]} 60... Kd3 {[%clk 0:00:13.1]} 61.
Kxb3 {[%clk 0:00:11.5]} 61... Ke2 {[%clk 0:00:13.6]} 62. Kb2 {[%clk 0:00:11.7]}
62... d3 {[%clk 0:00:14.5]} 63. Kc3 {[%clk 0:00:12.5]} 63... d2 {[%clk
0:00:15.4]} 64. Kc2 {[%clk 0:00:13.3]} 64... d1=Q+ {[%clk 0:00:16.3]} 65. Kb2
{[%clk 0:00:14.2]} 65... Qd3 {[%clk 0:00:17.2]} 66. Ka1 {[%clk 0:00:15.1]} 66...
Ke3 {[%clk 0:00:18]} 67. Kb2 {[%clk 0:00:15.9]} 67... Kd4 {[%clk 0:00:18.9]} 68.
Kc1 {[%clk 0:00:16.7]} 68... Kc4 {[%clk 0:00:19.8]} 69. Kb2 {[%clk 0:00:16.9]}
69... Kb4 {[%clk 0:00:20.7]} 70. Kc1 {[%clk 0:00:17.1]} 70... Qe2 {[%clk
0:00:21.6]} 71. Kb1 {[%clk 0:00:17.1]} 71... Kb3 {[%clk 0:00:22.5]} 72. Kc1
{[%clk 0:00:17.2]} 72... Qe1# {[%clk 0:00:23.4]} 0-1

[Event "*** SCC Grand Prix: Titled Tuesday Blitz"]
[Site "Chess.com"]
[Date "2020.06.09"]
[Round "5"]
[White "Bubachess1608"]
[Black "ClassyEl"]
[Result "0-1"]
[WhiteElo "2297"]
[BlackElo "2514"]
[TimeControl "180+1"]
[EndTime "9:57:52 PDT"]
[Termination "ClassyEl won on time"]

1. e4 {[%clk 0:03:00.9]} 1... c6 {[%clk 0:03:00.2]} 2. d4 {[%clk 0:02:58.8]}
2... d6 {[%clk 0:03:00.6]} 3. c4 {[%clk 0:02:39.8]} 3... e5 {[%clk 0:03:00.2]}
4. Nc3 {[%clk 0:02:38.7]} 4... Nf6 {[%clk 0:02:58.3]} 5. Nf3 {[%clk 0:02:35.6]}
5... Bg4 {[%clk 0:02:57.4]} 6. Be2 {[%clk 0:02:34.4]} 6... Nbd7 {[%clk
0:02:57.2]} 7. h3 {[%clk 0:02:34]} 7... Bxf3 {[%clk 0:02:53.1]} 8. Bxf3 {[%clk
0:02:32.9]} 8... Be7 {[%clk 0:02:53.5]} 9. O-O {[%clk 0:02:31.3]} 9... O-O
{[%clk 0:02:53.5]} 10. Be2 {[%clk 0:02:28.3]} 10... a5 {[%clk 0:02:49.2]} 11. f4
{[%clk 0:02:26.9]} 11... exd4 {[%clk 0:02:46.9]} 12. Qxd4 {[%clk 0:02:25.7]}
12... d5 {[%clk 0:02:47.3]} 13. Kh2 {[%clk 0:02:14.4]} 13... Bc5 {[%clk
0:02:31]} 14. Qd3 {[%clk 0:02:13]} 14... dxe4 {[%clk 0:02:31]} 15. Nxe4 {[%clk
0:02:11.6]} 15... Nxe4 {[%clk 0:02:30.9]} 16. Qxe4 {[%clk 0:02:10.6]} 16... Re8
{[%clk 0:02:26.5]} 17. Qf3 {[%clk 0:02:09.4]} 17... Qe7 {[%clk 0:02:26.2]} 18.
Bd3 {[%clk 0:02:08.3]} 18... Bd4 {[%clk 0:02:25.1]} 19. Rb1 {[%clk 0:02:04.9]}
19... Nc5 {[%clk 0:02:25]} 20. Bd2 {[%clk 0:01:49]} 20... Nxd3 {[%clk
0:02:08.2]} 21. Qxd3 {[%clk 0:01:47]} 21... Rad8 {[%clk 0:02:03]} 22. Qf3 {[%clk
0:01:34.4]} 22... Qc5 {[%clk 0:01:55.5]} 23. b3 {[%clk 0:01:28]} 23... h6 {[%clk
0:01:52.6]} 24. Rbd1 {[%clk 0:01:15.4]} 24... a4 {[%clk 0:01:51.5]} 25. Rfe1
{[%clk 0:01:13.1]} 25... Rxe1 {[%clk 0:01:40.3]} 26. Bxe1 {[%clk 0:01:11.5]}
26... Re8 {[%clk 0:01:33.4]} 27. Bd2 {[%clk 0:00:57.5]} 27... Bf6 {[%clk
0:01:21.9]} 28. Re1 {[%clk 0:00:56.1]} 28... Rd8 {[%clk 0:01:19.4]} 29. Bc3
{[%clk 0:00:54.4]} 29... Bxc3 {[%clk 0:01:14.7]} 30. Qxc3 {[%clk 0:00:53.6]}
30... Qf2 {[%clk 0:01:13.6]} 31. Qe3 {[%clk 0:00:52]} 31... Qxa2 {[%clk
0:01:11.4]} 32. bxa4 {[%clk 0:00:50.6]} 32... Qxc4 {[%clk 0:01:07.4]} 33. a5
{[%clk 0:00:48.7]} 33... Rd4 {[%clk 0:01:02.5]} 34. f5 {[%clk 0:00:46.9]} 34...
Qd5 {[%clk 0:00:59.2]} 35. f6 {[%clk 0:00:43.4]} 35... Qd6+ {[%clk 0:00:59]} 36.
Kg1 {[%clk 0:00:41.6]} 36... Qxf6 {[%clk 0:00:58.9]} 37. Rf1 {[%clk 0:00:41.4]}
37... Qd8 {[%clk 0:00:55.4]} 38. Qb3 {[%clk 0:00:36.8]} 38... Rd7 {[%clk
0:00:53.8]} 39. Qc3 {[%clk 0:00:35.3]} 39... Rd5 {[%clk 0:00:50.3]} 40. Qf3
{[%clk 0:00:28.9]} 40... f6 {[%clk 0:00:45]} 41. a6 {[%clk 0:00:26.8]} 41...
bxa6 {[%clk 0:00:44.7]} 42. Qc3 {[%clk 0:00:27.1]} 42... Qb6+ {[%clk 0:00:43.4]}
43. Kh1 {[%clk 0:00:26.3]} 43... Qb5 {[%clk 0:00:43.5]} 44. Re1 {[%clk
0:00:24.9]} 44... Re5 {[%clk 0:00:42]} 45. Rd1 {[%clk 0:00:23.3]} 45... Qe2
{[%clk 0:00:39.6]} 46. Rd8+ {[%clk 0:00:20.3]} 46... Kh7 {[%clk 0:00:40.1]} 47.
Qxc6 {[%clk 0:00:20]} 47... Qe1+ {[%clk 0:00:35.9]} 48. Kh2 {[%clk 0:00:19.2]}
48... Qe4 {[%clk 0:00:35.7]} 49. Qxe4+ {[%clk 0:00:17.7]} 49... Rxe4 {[%clk
0:00:36]} 50. Ra8 {[%clk 0:00:17]} 50... Ra4 {[%clk 0:00:36.1]} 51. Kg3 {[%clk
0:00:17.2]} 51... h5 {[%clk 0:00:36.5]} 52. Kf3 {[%clk 0:00:16.3]} 52... h4
{[%clk 0:00:35.7]} 53. g4 {[%clk 0:00:15.2]} 53... Ra3+ {[%clk 0:00:34.1]} 54.
Kf4 {[%clk 0:00:14.6]} 54... Rxh3 {[%clk 0:00:32.6]} 55. Rxa6 {[%clk 0:00:13.6]}
55... Kg6 {[%clk 0:00:29.8]} 56. g5 {[%clk 0:00:12]} 56... Rg3 {[%clk
0:00:28.5]} 57. gxf6 {[%clk 0:00:11.3]} 57... gxf6 {[%clk 0:00:29]} 58. Ra8
{[%clk 0:00:10.6]} 58... Rg5 {[%clk 0:00:28.9]} 59. Rg8+ {[%clk 0:00:07.6]}
59... Kh7 {[%clk 0:00:29]} 60. Rf8 {[%clk 0:00:07.1]} 60... Kg7 {[%clk
0:00:29.4]} 61. Ra8 {[%clk 0:00:05.5]} 61... Rg1 {[%clk 0:00:26.2]} 62. Ra3
{[%clk 0:00:02.8]} 62... Kg6 {[%clk 0:00:24.6]} 63. Rh3 {[%clk 0:00:02.1]} 63...
Kh5 {[%clk 0:00:21.5]} 0-1

[Event "*** SCC Grand Prix: Titled Tuesday Blitz"]
[Site "Chess.com"]
[Date "2020.06.09"]
[Round "5"]
[White "harkerchess"]
[Black "Jadeit90"]
[Result "0-1"]
[WhiteElo "2025"]
[BlackElo "2315"]
[TimeControl "180+1"]
[EndTime "9:57:55 PDT"]
[Termination "Jadeit90 won by resignation"]

1. d4 {[%clk 0:03:00.9]} 1... g6 {[%clk 0:02:54.1]} 2. c4 {[%clk 0:02:56.4]}
2... Bg7 {[%clk 0:02:54.5]} 3. Nc3 {[%clk 0:02:52.4]} 3... c5 {[%clk 0:02:54.8]}
4. e3 {[%clk 0:02:51.5]} 4... cxd4 {[%clk 0:02:55]} 5. exd4 {[%clk 0:02:52.4]}
5... Nf6 {[%clk 0:02:55.8]} 6. Nf3 {[%clk 0:02:51.9]} 6... O-O {[%clk
0:02:56.7]} 7. Be2 {[%clk 0:02:52.1]} 7... d5 {[%clk 0:02:57.1]} 8. cxd5 {[%clk
0:02:47.7]} 8... Nxd5 {[%clk 0:02:57]} 9. O-O {[%clk 0:02:47.7]} 9... Nc6 {[%clk
0:02:57]} 10. Be3 {[%clk 0:02:46.4]} 10... Nxe3 {[%clk 0:02:56.6]} 11. fxe3
{[%clk 0:02:47.3]} 11... e5 {[%clk 0:02:56.9]} 12. d5 {[%clk 0:02:45.7]} 12...
Ne7 {[%clk 0:02:56.6]} 13. e4 {[%clk 0:02:45.9]} 13... Qb6+ {[%clk 0:02:48]} 14.
Kh1 {[%clk 0:02:43.8]} 14... Qxb2 {[%clk 0:02:47.9]} 15. Nb5 {[%clk 0:02:42.1]}
15... Qb4 {[%clk 0:02:45.7]} 16. Nc7 {[%clk 0:02:37.9]} 16... Rb8 {[%clk
0:02:44.5]} 17. Bd3 {[%clk 0:02:37.1]} 17... Qd6 {[%clk 0:02:31.3]} 18. Nb5
{[%clk 0:02:35.9]} 18... Qb6 {[%clk 0:02:31.2]} 19. a4 {[%clk 0:02:29.9]} 19...
a6 {[%clk 0:02:28.3]} 20. a5 {[%clk 0:02:29.5]} 20... Qd8 {[%clk 0:02:28.5]} 21.
Na3 {[%clk 0:02:26.4]} 21... Bg4 {[%clk 0:02:23.9]} 22. Nc4 {[%clk 0:02:25.2]}
22... f5 {[%clk 0:02:15.7]} 23. Qb3 {[%clk 0:02:24.3]} 23... Bxf3 {[%clk
0:02:14.4]} 24. gxf3 {[%clk 0:02:17.3]} 24... Kh8 {[%clk 0:02:10.9]} 25. Ra4
{[%clk 0:02:09.3]} 25... fxe4 {[%clk 0:02:08.1]} 26. fxe4 {[%clk 0:02:07.9]}
26... Rxf1+ {[%clk 0:02:08]} 27. Bxf1 {[%clk 0:02:08.8]} 27... Qf8 {[%clk
0:02:07.1]} 28. Bg2 {[%clk 0:02:03.7]} 28... Qf2 {[%clk 0:02:03.7]} 29. Qb1
{[%clk 0:02:03.4]} 29... Ng8 {[%clk 0:01:50.1]} 30. Nb6 {[%clk 0:02:00.6]} 30...
Rf8 {[%clk 0:01:43.9]} 31. Ra2 {[%clk 0:01:58.4]} 31... Qd4 {[%clk 0:01:32.3]}
32. Ra4 {[%clk 0:01:56.1]} 32... Qf2 {[%clk 0:01:30.9]} 33. Ra2 {[%clk
0:01:55.9]} 33... Qe3 {[%clk 0:01:30.8]} 34. Nc4 {[%clk 0:01:51.3]} 34... Qd4
{[%clk 0:01:30]} 35. Nd6 {[%clk 0:01:45.6]} 35... Nh6 {[%clk 0:01:28.1]} 36. h3
{[%clk 0:01:42.9]} 36... g5 {[%clk 0:01:09.7]} 37. Qxb7 {[%clk 0:01:35]} 37...
g4 {[%clk 0:01:02.9]} 38. Qb6 {[%clk 0:01:06.3]} 38... Qd1+ {[%clk 0:01:00.7]}
39. Qg1 {[%clk 0:01:04.9]} 39... Qb3 {[%clk 0:00:51.2]} 40. Rf2 {[%clk
0:00:58.8]} 40... gxh3 {[%clk 0:00:49.6]} 41. Bf1 {[%clk 0:00:48.5]} 41... Rg8
{[%clk 0:00:22.1]} 42. Rf7 {[%clk 0:00:38.7]} 42... Bf6 {[%clk 0:00:19.2]} 43.
Qf2 {[%clk 0:00:30.5]} 43... Bg7 {[%clk 0:00:15.8]} 44. Bxa6 {[%clk 0:00:21]}
44... Qb4 {[%clk 0:00:15.9]} 45. Qb6 {[%clk 0:00:18.1]} 45... Qe1+ {[%clk
0:00:15]} 46. Rf1 {[%clk 0:00:17.6]} 46... Qg3 {[%clk 0:00:12.9]} 47. Qf2 {[%clk
0:00:16.6]} 47... Qg4 {[%clk 0:00:12.3]} 48. Be2 {[%clk 0:00:14.3]} 48... Qg6
{[%clk 0:00:10]} 49. Nc4 {[%clk 0:00:11]} 49... Qxe4+ {[%clk 0:00:09.7]} 50. Qf3
{[%clk 0:00:11.1]} 50... Qd4 {[%clk 0:00:09.3]} 51. a6 {[%clk 0:00:09.7]} 51...
e4 {[%clk 0:00:09.7]} 52. Qf2 {[%clk 0:00:08.9]} 52... Qxd5 {[%clk 0:00:10.1]}
53. Ne3 {[%clk 0:00:07.1]} 53... Qd7 {[%clk 0:00:08.5]} 54. Bc4 {[%clk
0:00:06.9]} 54... Rf8 {[%clk 0:00:07.5]} 55. Qg1 {[%clk 0:00:03.7]} 55... Rd8
{[%clk 0:00:07.5]} 56. Rf7 {[%clk 0:00:03.3]} 56... Nxf7 {[%clk 0:00:02.5]} 57.
Bxf7 {[%clk 0:00:03.1]} 57... Qxf7 {[%clk 0:00:03.4]} 58. Ng4 {[%clk 0:00:03.4]}
58... Rf8 {[%clk 0:00:03.7]} 59. Ne5 {[%clk 0:00:03.1]} 59... Qf4 {[%clk
0:00:03.8]} 60. Nf7+ {[%clk 0:00:04]} 60... Qxf7 {[%clk 0:00:04]} 61. a7 {[%clk
0:00:04.2]} 61... Qf3+ {[%clk 0:00:04.9]} 62. Kh2 {[%clk 0:00:03.4]} 62... Qf2+
{[%clk 0:00:05.5]} 63. Qxf2 {[%clk 0:00:02.1]} 63... Rxf2+ {[%clk 0:00:06.4]}
64. Kxh3 {[%clk 0:00:03]} 64... Ra2 {[%clk 0:00:07]} 65. a8=Q+ {[%clk
0:00:03.7]} 65... Rxa8 {[%clk 0:00:07.7]} 66. Kg4 {[%clk 0:00:04.4]} 66... Re8
{[%clk 0:00:08.3]} 67. Kf4 {[%clk 0:00:05.3]} 67... e3 {[%clk 0:00:09.2]} 0-1

[Event "*** SCC Grand Prix: Titled Tuesday Blitz"]
[Site "Chess.com"]
[Date "2020.06.09"]
[Round "5"]
[White "AlexSuv"]
[Black "jonaszmb"]
[Result "1-0"]
[WhiteElo "2696"]
[BlackElo "2416"]
[TimeControl "180+1"]
[EndTime "9:57:55 PDT"]
[Termination "AlexSuv won by resignation"]

1. d4 {[%clk 0:03:00.9]} 1... d5 {[%clk 0:02:59.7]} 2. c4 {[%clk 0:02:57.7]}
2... Bf5 {[%clk 0:02:59.7]} 3. Nc3 {[%clk 0:02:57.1]} 3... e6 {[%clk 0:02:59.6]}
4. Nf3 {[%clk 0:02:54.8]} 4... Nc6 {[%clk 0:02:59.6]} 5. cxd5 {[%clk 0:02:51.4]}
5... exd5 {[%clk 0:03:00.5]} 6. Bf4 {[%clk 0:02:50.7]} 6... Nf6 {[%clk
0:02:57.1]} 7. e3 {[%clk 0:02:49.7]} 7... Bb4 {[%clk 0:02:56.8]} 8. Be2 {[%clk
0:02:40.3]} 8... Ne4 {[%clk 0:02:56.4]} 9. Qc1 {[%clk 0:02:25.7]} 9... Qe7
{[%clk 0:02:14.1]} 10. O-O {[%clk 0:02:23.9]} 10... Nxc3 {[%clk 0:02:14.1]} 11.
bxc3 {[%clk 0:02:24.2]} 11... Ba3 {[%clk 0:02:14.7]} 12. Qd2 {[%clk 0:02:21.6]}
12... O-O {[%clk 0:02:13.1]} 13. c4 {[%clk 0:01:59.4]} 13... dxc4 {[%clk
0:01:16.1]} 14. Bxc4 {[%clk 0:01:58.4]} 14... Rad8 {[%clk 0:01:15.6]} 15. Bb3
{[%clk 0:01:35.2]} 15... Kh8 {[%clk 0:01:03.9]} 16. h3 {[%clk 0:01:30.9]} 16...
Bb4 {[%clk 0:01:02.5]} 17. Qb2 {[%clk 0:01:04.6]} 17... Ba3 {[%clk 0:01:00]} 18.
Qc3 {[%clk 0:00:53.8]} 18... Bb4 {[%clk 0:00:59.4]} 19. Qc4 {[%clk 0:00:54]}
19... Bd6 {[%clk 0:00:42.3]} 20. Bxd6 {[%clk 0:00:51.8]} 20... cxd6 {[%clk
0:00:36.1]} 21. Rfc1 {[%clk 0:00:48.6]} 21... d5 {[%clk 0:00:34.5]} 22. Qc5
{[%clk 0:00:47.2]} 22... Qxc5 {[%clk 0:00:19.6]} 23. Rxc5 {[%clk 0:00:47.1]}
23... Be6 {[%clk 0:00:20.2]} 24. Rac1 {[%clk 0:00:45]} 24... h6 {[%clk
0:00:14.5]} 25. Ba4 {[%clk 0:00:39.7]} 25... Nb4 {[%clk 0:00:10.9]} 26. Rb1
{[%clk 0:00:20.3]} 26... Nxa2 {[%clk 0:00:06.6]} 27. Rxb7 {[%clk 0:00:20.3]}
27... Rc8 {[%clk 0:00:03.3]} 28. Rbc7 {[%clk 0:00:19.4]} 28... Rxc7 {[%clk
0:00:03.1]} 29. Rxc7 {[%clk 0:00:20]} 29... a5 {[%clk 0:00:02.9]} 30. Ra7 {[%clk
0:00:19.6]} 30... Nb4 {[%clk 0:00:02.7]} 31. Rxa5 {[%clk 0:00:19.4]} 31... Rc8
{[%clk 0:00:03.1]} 32. Rc5 {[%clk 0:00:17]} 32... Ra8 {[%clk 0:00:02.9]} 33. Bc6
{[%clk 0:00:16.1]} 33... Ra1+ {[%clk 0:00:03.1]} 34. Kh2 {[%clk 0:00:16.5]}
34... Nd3 {[%clk 0:00:03.7]} 35. Rc2 {[%clk 0:00:15.7]} 35... g5 {[%clk
0:00:02.4]} 36. Bb5 {[%clk 0:00:15.6]} 36... Nb4 {[%clk 0:00:01.5]} 37. Rb2
{[%clk 0:00:16]} 37... Na2 {[%clk 0:00:01.9]} 38. Ne5 {[%clk 0:00:15.6]} 38...
Bf5 {[%clk 0:00:01.8]} 39. Nxf7+ {[%clk 0:00:13.8]} 39... Kg7 {[%clk 0:00:02.1]}
40. Ne5 {[%clk 0:00:14.3]} 40... Nc1 {[%clk 0:00:02.2]} 41. Bd7 {[%clk
0:00:12.1]} 41... Be4 {[%clk 0:00:01.8]} 42. f3 {[%clk 0:00:11.8]} 42... Bb1
{[%clk 0:00:01.7]} 43. Be6 {[%clk 0:00:11.4]} 43... Nd3 {[%clk 0:00:01.6]} 44.
Nxd3 {[%clk 0:00:11.3]} 44... Bxd3 {[%clk 0:00:02.5]} 45. Bxd5 {[%clk
0:00:11.6]} 45... Kf6 {[%clk 0:00:03.1]} 46. e4 {[%clk 0:00:11.9]} 46... Bf1
{[%clk 0:00:02.6]} 47. Rb6+ {[%clk 0:00:11.8]} 47... Ke7 {[%clk 0:00:02.7]} 48.
Rb2 {[%clk 0:00:11.8]} 48... Re1 {[%clk 0:00:02.8]} 49. Rf2 {[%clk 0:00:11.2]}
49... Kd6 {[%clk 0:00:02.9]} 50. Kg3 {[%clk 0:00:11.4]} 50... Bd3 {[%clk
0:00:03.2]} 51. h4 {[%clk 0:00:11.4]} 51... gxh4+ {[%clk 0:00:03]} 52. Kxh4
{[%clk 0:00:12.2]} 52... Rh1+ {[%clk 0:00:03.4]} 53. Kg4 {[%clk 0:00:11.8]}
53... h5+ {[%clk 0:00:04.2]} 54. Kf4 {[%clk 0:00:11.6]} 54... h4 {[%clk
0:00:03.2]} 55. Rd2 {[%clk 0:00:11.6]} 55... Bb1 {[%clk 0:00:03]} 56. Bb3 {[%clk
0:00:11.5]} 56... Rg1 {[%clk 0:00:03.1]} 57. e5+ {[%clk 0:00:11.8]} 57... Ke7
{[%clk 0:00:03]} 58. d5 {[%clk 0:00:12.1]} 58... Kd8 {[%clk 0:00:01.8]} 59. d6
{[%clk 0:00:12.4]} 59... Bg6 {[%clk 0:00:02]} 60. e6 {[%clk 0:00:12.5]} 60...
Be8 {[%clk 0:00:02.5]} 61. e7+ {[%clk 0:00:11.4]} 61... Kc8 {[%clk 0:00:03.1]}
62. Be6+ {[%clk 0:00:11.2]} 62... Kb7 {[%clk 0:00:03.2]} 63. d7 {[%clk
0:00:11.2]} 63... Bxd7 {[%clk 0:00:03.6]} 64. Bxd7 {[%clk 0:00:11.8]} 64... h3
{[%clk 0:00:04.5]} 65. gxh3 {[%clk 0:00:11]} 1-0